bitfinex-derivatives/quotes_BTCF0:USTF0_20241029
["timestamp","ask_amount","ask_price","bid_price","bid_amount"]
[1730186675057,0.11105719,71066.0,71065.0,0.016]
[1730186684662,0.08005719,71066.0,71065.0,0.08641]
[1730186684861,0.00964819,71066.0,71065.0,0.08641]
[1730186685583,0.08005719,71066.0,71065.0,0.08641]
[1730186690573,0.11454499,71066.0,71065.0,0.08641]
[1730186690795,0.04413599,71066.0,71065.0,0.08641]
[1730186690967,0.00964819,71066.0,71065.0,0.08641]
[1730186692263,0.04413587,71066.0,71065.0,0.08641]
[1730186692873,0.04413566,71066.0,71065.0,0.08641]
[1730186693070,0.08736352,71066.0,71065.0,0.08641]
[1730186693493,0.08736374,71066.0,71065.0,0.08641]
[1730186693864,0.04413583,71066.0,71065.0,0.08641]
[1730186696775,0.00964819,71066.0,71065.0,0.08641]
[1730186697379,0.08736331,71066.0,71065.0,0.08641]
[1730186697967,0.04413583,71066.0,71065.0,0.08641]
[1730186698480,0.00964819,71066.0,71065.0,0.11921]
[1730186698871,0.00964819,71066.0,71065.0,0.54137]
[1730186699066,0.09624,71084.0,71065.0,0.54137]
[1730186699067,0.070396,71080.0,71065.0,0.54137]
[1730186699273,0.070396,71080.0,71079.0,0.06213187]
[1730186699673,0.10487773,71080.0,71079.0,0.06213187]
[1730186700269,0.10787773,71080.0,71079.0,0.06213187]
[1730186700586,0.070399,71077.0,71076.0,0.06213187]
[1730186700775,0.10488073,71077.0,71076.0,0.06213187]
[1730186701076,0.10488073,71077.0,71076.0,0.13253087]
[1730186701780,0.10688073,71077.0,71076.0,0.13253087]
[1730186702983,0.03848173,71077.0,71076.0,0.13253087]
[1730186704483,0.10888073,71077.0,71076.0,0.13253087]
[1730186705376,0.10888073,71077.0,71076.0,0.1469463]
[1730186705777,0.08170275,71077.0,71076.0,0.1469463]
[1730186706389,0.03848173,71077.0,71076.0,0.1469463]
[1730186706772,0.04722045,71077.0,71076.0,0.1469463]
[1730186706981,0.004,71077.0,71076.0,0.1469463]
[1730186707390,0.03848173,71077.0,71076.0,0.1469463]
[1730186708478,0.004,71077.0,71076.0,0.20907817]
[1730186708686,0.004,71077.0,71076.0,0.1469463]
[1730186708883,0.004,71077.0,71076.0,0.20907817]
[1730186709787,0.004,71077.0,71076.0,0.1469463]
[1730186709991,0.002,71077.0,71076.0,0.20907817]
[1730186710177,0.001,71077.0,71076.0,0.20907817]
[1730186710376,0.003,71077.0,71076.0,0.20907817]
[1730186710786,0.002,71077.0,71076.0,0.1469463]
[1730186710989,0.3608,71082.0,71076.0,0.14067917]
[1730186711189,0.3608,71082.0,71081.0,0.06213187]
[1730186711688,0.39528078,71082.0,71081.0,0.06213187]
[1730186711886,0.3608,71082.0,71081.0,0.06213187]
[1730186712083,0.39728078,71082.0,71081.0,0.06213187]
[1730186712591,0.46767478,71082.0,71081.0,0.06213187]
[1730186712891,0.4676748,71082.0,71081.0,0.06213187]
[1730186713289,0.4706748,71082.0,71081.0,0.06213187]
[1730186713492,0.4686748,71082.0,71081.0,0.06213187]
[1730186713689,0.4706748,71082.0,71081.0,0.06213187]
[1730186714186,0.1098748,71082.0,71081.0,0.06213187]
[1730186714792,0.075394,71082.0,71081.0,0.06213187]
[1730186715096,0.075394,71082.0,71081.0,0.13252687]
[1730186718198,0.10987502,71082.0,71081.0,0.13252687]
[1730186724103,0.15309448,71082.0,71081.0,0.13252687]
[1730186725402,0.10987502,71082.0,71081.0,0.13252687]
[1730186726996,0.075394,71082.0,71081.0,0.13252687]
[1730186727297,0.0394805,71082.0,71081.0,0.13252687]
[1730186727894,0.005,71082.0,71081.0,0.13252687]
[1730186728124,0.08270023,71082.0,71081.0,0.13252687]
[1730186729898,0.03948084,71082.0,71081.0,0.13252687]
[1730186730095,0.3608,71093.0,71081.0,0.54630374]
[1730186730402,0.3608,71093.0,71092.0,0.19464774]
[1730186730704,0.3608,71093.0,71092.0,0.13251587]
[1730186731497,0.3628,71093.0,71092.0,0.13251587]
[1730186732703,0.44048376,71093.0,71092.0,0.070384]
[1730186732905,0.44048376,71093.0,71092.0,0.13251587]
[1730186733502,0.44048376,71093.0,71092.0,0.13451587]
[1730186734402,0.39727353,71093.0,71092.0,0.14846942]
[1730186737106,0.002,71093.0,71092.0,0.50926942]
[1730186737704,0.03647088,71093.0,71092.0,0.50926942]
[1730186737898,0.002,71093.0,71092.0,0.50926942]
[1730186738909,0.03647086,71093.0,71092.0,0.57140129]
[1730186739115,0.03647086,71093.0,71092.0,0.50926942]
[1730186739812,0.002,71093.0,71092.0,0.50926942]
[1730186740006,0.002,71093.0,71092.0,0.57140129]
[1730186740209,0.00211066,71099.0,71098.0,0.070378]
[1730186740419,0.00211066,71099.0,71098.0,0.431178]
[1730186741517,0.00211066,71099.0,71098.0,0.432178]
[1730186741816,0.00211066,71099.0,71098.0,0.433178]
[1730186743414,0.070365,71111.0,71098.0,0.433178]
[1730186743616,0.070365,71111.0,71110.0,0.13249787]
[1730186744919,0.070365,71111.0,71110.0,0.13349787]
[1730186745414,0.070365,71111.0,71110.0,0.13449787]
[1730186746419,0.0326,71112.0,71111.0,0.070365]
[1730186747811,0.0326,71112.0,71111.0,0.071365]
[1730186748012,0.0326,71112.0,71111.0,0.072365]
[1730186748416,0.070361,71116.0,71111.0,0.072365]
[1730186748417,0.0638,71117.0,71111.0,0.002]
[1730186748612,0.0638,71117.0,71116.0,0.07036]
[1730186748613,0.0325,71117.0,71116.0,0.07036]
[1730186748816,0.43398569,71120.0,71116.0,0.07036]
[1730186749012,0.44717069,71120.0,71119.0,0.06213187]
[1730186749321,0.48163556,71120.0,71119.0,0.06213187]
[1730186749711,0.52483494,71120.0,71119.0,0.06213187]
[1730186749919,0.48163556,71120.0,71119.0,0.06213187]
[1730186750517,0.48333405,71120.0,71119.0,0.06213187]
[1730186750721,0.48333405,71120.0,71119.0,0.06313187]
[1730186751421,0.48333405,71120.0,71119.0,0.06413187]
[1730186751810,0.48333405,71120.0,71119.0,0.13448887]
[1730186751811,0.01771318,71120.0,71119.0,0.13448887]
[1730186752314,0.00380818,71120.0,71119.0,0.13448887]
[1730186753321,0.00380818,71120.0,71119.0,0.19662074]
[1730186753715,0.00380818,71120.0,71119.0,0.13448887]
[1730186754517,0.00403889,71120.0,71119.0,0.13448887]
[1730186755817,0.00403889,71120.0,71119.0,0.14845351]
[1730186756175,0.00403889,71120.0,71119.0,0.08632164]
[1730186756212,0.03849865,71120.0,71119.0,0.14845351]
[1730186757614,0.00403889,71120.0,71119.0,0.14845351]
[1730186758124,0.03849864,71120.0,71119.0,0.14845351]
[1730186760120,0.10885464,71120.0,71119.0,0.14845351]
[1730186760325,0.17098651,71120.0,71119.0,0.01596464]
[1730186760518,0.21417956,71120.0,71119.0,0.002]
[1730186760714,0.17098794,71120.0,71119.0,0.002]
[1730186760918,0.10885607,71120.0,71119.0,0.002]
[1730186761126,0.15205162,71120.0,71119.0,0.002]
[1730186761328,0.21418349,71120.0,71119.0,0.002]
[1730186761820,0.21418349,71120.0,71119.0,0.00126461]
[1730186762526,0.10885607,71120.0,71119.0,0.00126461]
[1730186769224,0.10885795,71120.0,71119.0,0.00126461]
[1730186769425,0.15205505,71120.0,71119.0,0.00126461]
[1730186771137,0.15205505,71120.0,71119.0,0.06339648]
[1730186773738,0.51285505,71120.0,71119.0,0.04036142]
[1730186773940,0.56333051,71120.0,71119.0,0.04036142]
[1730186775334,0.51285505,71120.0,71119.0,0.04036142]
[1730186777437,0.15205505,71120.0,71119.0,0.04036142]
[1730186777632,0.15205505,71120.0,71119.0,0.11071842]
[1730186777633,0.03850195,71120.0,71119.0,0.11071842]
[1730186778142,0.03850195,71120.0,71119.0,0.13248887]
[1730186778838,0.00403889,71120.0,71119.0,0.19462074]
[1730186779138,0.00425141,71120.0,71119.0,0.13248887]
[1730186779346,0.00425141,71120.0,71119.0,0.19462074]
[1730186779347,0.03871159,71120.0,71119.0,0.19462074]
[1730186781737,0.00425141,71120.0,71119.0,0.20845726]
[1730186783157,0.03871031,71120.0,71119.0,0.20845726]
[1730186783445,0.03871031,71120.0,71119.0,0.30437726]
[1730186783839,0.00425141,71120.0,71119.0,0.18011352]
[1730186784341,0.00425141,71120.0,71119.0,0.24224539]
[1730186785237,0.00214172,71120.0,71119.0,0.24224539]
[1730186785544,0.00214172,71120.0,71119.0,0.30437726]
[1730186786343,0.00214172,71120.0,71119.0,0.24224539]
[1730186787444,0.00214172,71120.0,71119.0,0.30437726]
[1730186789949,0.00214172,71120.0,71119.0,0.20845726]
[1730186791145,0.03660035,71120.0,71119.0,0.20845726]
[1730186791455,0.00214172,71120.0,71119.0,0.20845726]
[1730186792348,0.03659966,71120.0,71119.0,0.20845726]
[1730186793746,0.03659966,71120.0,71119.0,0.20945726]
[1730186793970,0.03659966,71120.0,71119.0,0.21045726]
[1730186793971,0.03759966,71120.0,71119.0,0.21045726]
[1730186794641,0.10795566,71120.0,71119.0,0.08619352]
[1730186794847,0.10795566,71120.0,71119.0,0.07796839]
[1730186795053,0.15114739,71120.0,71119.0,0.14832539]
[1730186795644,0.15114739,71120.0,71119.0,0.08619352]
[1730186795846,0.15114739,71120.0,71119.0,0.14832539]
[1730186796747,0.10795566,71120.0,71119.0,0.14832539]
[1730186797643,0.15114789,71120.0,71119.0,0.14832539]
[1730186798216,0.10795566,71120.0,71119.0,0.08619352]
[1730186798348,0.15114788,71120.0,71119.0,0.14832539]
[1730186798547,0.10795566,71120.0,71119.0,0.14832539]
[1730186800650,0.07349772,71120.0,71119.0,0.14832539]
[1730186802054,0.00314172,71120.0,71119.0,0.21045726]
[1730186802253,0.00314172,71120.0,71119.0,0.14832539]
[1730186802730,0.00314172,71120.0,71119.0,0.21045726]
[1730186805553,0.03759954,71120.0,71119.0,0.21045726]
[1730186805750,0.00314172,71120.0,71119.0,0.21045726]
[1730186807552,0.03759943,71120.0,71119.0,0.21045726]
[1730186808063,0.00314172,71120.0,71119.0,0.21045726]
[1730186808564,0.00314172,71120.0,71119.0,0.20945726]
[1730186808756,0.00314172,71120.0,71119.0,0.21045726]
[1730186809447,0.03759943,71120.0,71119.0,0.21045726]
[1730186810259,0.00314172,71120.0,71119.0,0.21045726]
[1730186811370,0.00314172,71120.0,71119.0,0.14832539]
[1730186815867,0.00314172,71120.0,71119.0,0.21045726]
[1730186816263,0.00314172,71120.0,71119.0,0.14832539]
[1730186818961,0.00314172,71120.0,71119.0,0.21045726]
[1730186820674,0.00314172,71120.0,71119.0,0.14832539]
[1730186820969,0.00314172,71120.0,71119.0,0.21045726]
[1730186821159,0.00314172,71120.0,71119.0,0.14832539]
[1730186821359,0.04463765,71133.0,71132.0,0.070344]
[1730186821663,0.07909438,71133.0,71132.0,0.13247587]
[1730186822763,0.07909438,71133.0,71132.0,0.13347587]
[1730186822970,0.08009438,71133.0,71132.0,0.13447587]
[1730186823675,0.12328254,71133.0,71132.0,0.13447587]
[1730186823871,0.08009438,71133.0,71132.0,0.13447587]
[1730186824470,0.07909438,71133.0,71132.0,0.13447587]
[1730186825181,0.07909357,71133.0,71132.0,0.13447587]
[1730186825365,0.12228173,71133.0,71132.0,0.13447587]
[1730186825566,0.19262473,71133.0,71132.0,0.13447587]
[1730186827174,0.19262565,71133.0,71132.0,0.13447587]
[1730186827672,0.14943657,71133.0,71132.0,0.13447587]
[1730186827873,0.19262571,71133.0,71132.0,0.13447587]
[1730186828269,0.14943657,71133.0,71132.0,0.13447587]
[1730186831274,0.14943657,71133.0,71132.0,0.06413187]
[1730186833869,0.17983657,71133.0,71132.0,0.06413187]
[1730186834476,0.70691831,71133.0,71132.0,0.002]
[1730186834676,0.69525385,71133.0,71132.0,0.002]
[1730186834881,0.30795189,71133.0,71132.0,0.00127553]
[1730186835176,0.27349597,71133.0,71132.0,0.0634074]
[1730186835577,0.22302856,71133.0,71132.0,0.0634074]
[1730186836278,0.58382856,71133.0,71132.0,0.0634074]
[1730186837387,0.58382856,71133.0,71132.0,0.00127553]
[1730186837974,0.54063827,71133.0,71132.0,0.00127553]
[1730186838480,0.58382984,71133.0,71132.0,0.00127553]
[1730186839473,0.54063827,71133.0,71132.0,0.00127553]
[1730186839876,0.5406393,71133.0,71132.0,0.00127553]
[1730186842581,0.1798393,71133.0,71132.0,0.00127553]
[1730186842787,0.5406393,71133.0,71132.0,0.00127553]
[1730186845880,0.58383088,71133.0,71132.0,0.00127553]
[1730186846080,0.5406393,71133.0,71132.0,0.00127553]
[1730186846374,0.58383088,71133.0,71132.0,0.00127553]
[1730186848484,0.58483638,71133.0,71132.0,0.00127553]
[1730186849189,0.5854109,71133.0,71132.0,0.00127553]
[1730186849487,0.54221932,71133.0,71132.0,0.00127553]
[1730186849681,0.58541088,71133.0,71132.0,0.00127553]
[1730186849886,0.5859854,71133.0,71132.0,0.00127553]
[1730186850388,0.96455383,71133.0,71132.0,0.00127553]
[1730186850594,0.96455383,71133.0,71117.0,0.07246797]
[1730186850595,0.070358,71118.0,71117.0,0.00210897]
[1730186850889,0.07251254,71118.0,71117.0,0.00210897]
[1730186851089,0.20063231,71118.0,71117.0,0.00210897]
[1730186851505,0.15016278,71118.0,71117.0,0.00210897]
[1730186851687,0.15116278,71118.0,71117.0,0.00410897]
[1730186852693,0.10797118,71118.0,71117.0,0.00410897]
[1730186852897,0.63514766,71118.0,71117.0,0.00410897]
[1730186853201,0.66804766,71118.0,71117.0,0.00410897]
[1730186853501,0.68255415,71118.0,71117.0,0.00410897]
[1730186853885,0.68255415,71118.0,71105.0,0.06213187]
[1730186853886,0.070362,71114.0,71100.0,0.06213187]
[1730186854186,0.070375,71101.0,71100.0,0.06213187]
[1730186854387,0.10483943,71101.0,71100.0,0.06213187]
[1730186855102,0.10699397,71101.0,71100.0,0.06213187]
[1730186855286,0.10699397,71101.0,71100.0,0.06413187]
[1730186855493,0.07252954,71101.0,71100.0,0.06413187]
[1730186855694,0.10700084,71101.0,71100.0,0.06413187]
[1730186856294,0.10700084,71101.0,71100.0,0.06513187]
[1730186856499,0.07252954,71101.0,71100.0,0.06513187]
[1730186857097,0.07252954,71101.0,71100.0,0.06413187]
[1730186857595,0.07252954,71101.0,71100.0,0.13450787]
[1730186859388,0.07252954,71101.0,71100.0,0.06413187]
[1730186860698,0.07252954,71101.0,71100.0,0.13450787]
[1730186872702,0.00215454,71101.0,71100.0,0.13450787]
[1730186872907,0.3608,71118.0,71100.0,0.61855974]
[1730186873115,0.01605979,71116.0,71115.0,0.13249287]
[1730186873413,0.10693628,71116.0,71115.0,0.13249287]
[1730186873615,0.03657628,71116.0,71115.0,0.13249287]
[1730186874008,0.03657514,71116.0,71115.0,0.13249287]
[1730186874208,0.03857514,71116.0,71115.0,0.13249287]
[1730186875607,0.03957514,71116.0,71115.0,0.13349287]
[1730186876446,0.03957514,71116.0,71115.0,0.13449287]
[1730186877109,0.03957514,71116.0,71115.0,0.16669287]
[1730186877823,0.00511002,71116.0,71115.0,0.16669287]
[1730186881535,0.00511002,71116.0,71115.0,0.58853287]
[1730186881823,0.00511002,71116.0,71115.0,0.16669287]
[1730186882121,0.003,71116.0,71115.0,0.16669287]
[1730186886525,0.003,71116.0,71115.0,0.58853287]
[1730186886823,0.003,71116.0,71115.0,0.16669287]
[1730186891827,0.003,71116.0,71115.0,0.13449287]
[1730186893337,0.003,71116.0,71115.0,0.23009287]
[1730186904036,0.03745874,71116.0,71115.0,0.23009287]
[1730186905334,0.003,71116.0,71115.0,0.23009287]
[1730186908941,0.003,71116.0,71115.0,0.29222474]
[1730186912941,0.003,71116.0,71115.0,0.65302474]
[1730186914236,0.03745838,71116.0,71115.0,0.65302474]
[1730186914638,0.003,71116.0,71115.0,0.65302474]
[1730186915036,0.03745796,71116.0,71115.0,0.65302474]
[1730186916539,0.0637,71131.0,71130.0,0.070346]
[1730186916746,0.10688932,71131.0,71130.0,0.070346]
[1730186918141,0.10888932,71131.0,71130.0,0.071346]
[1730186918351,0.0657,71131.0,71130.0,0.072346]
[1730186918841,0.0637,71131.0,71130.0,0.071346]
[1730186919146,0.0657,71131.0,71130.0,0.072346]
[1730186919336,0.10888797,71131.0,71130.0,0.072346]
[1730186920465,0.10888797,71131.0,71130.0,0.13447787]
[1730186920649,0.17923297,71131.0,71130.0,0.13447787]
[1730186922152,0.136045,71131.0,71130.0,0.13447787]
[1730186924546,0.21368933,71131.0,71130.0,0.13447787]
[1730186924852,0.21368933,71131.0,71130.0,0.072346]
[1730186924853,0.17050103,71131.0,71130.0,0.072346]
[1730186928353,0.17050103,71131.0,71130.0,0.13447787]
[1730186929056,0.21368933,71131.0,71130.0,0.13447787]
[1730186929746,0.17050103,71131.0,71130.0,0.13447787]
[1730186929946,0.21368932,71131.0,71130.0,0.13447787]
[1730186930962,0.17050103,71131.0,71130.0,0.13447787]
[1730186931347,0.11234432,71131.0,71130.0,0.13447787]
[1730186932174,0.06915603,71131.0,71130.0,0.13447787]
[1730186932657,0.03645603,71131.0,71130.0,0.13447787]
[1730186934550,0.00072,71145.0,71144.0,0.070332]
[1730186934854,0.4255,71156.0,71155.0,0.070321]
[1730186935151,0.4255,71156.0,71155.0,0.13245287]
[1730186935152,0.46867355,71156.0,71155.0,0.13245287]
[1730186935352,0.10787355,71156.0,71155.0,0.13245287]
[1730186935954,0.10787355,71156.0,71155.0,0.13345287]
[1730186936547,0.0647,71156.0,71155.0,0.13345287]
[1730186936854,0.10787244,71156.0,71155.0,0.13445287]
[1730186937052,0.031,71161.0,71158.0,0.070318]
[1730186937251,0.045307,71161.0,71158.0,0.13244987]
[1730186938164,0.070317,71159.0,71158.0,0.06213187]
[1730186938367,0.070319,71158.0,71156.0,0.06213187]
[1730186938664,0.06213187,71160.0,71155.0,0.001]
[1730186938849,0.07032,71156.0,71155.0,0.001]
[1730186939049,0.07032,71156.0,71154.0,0.070322]
[1730186939250,0.070321,71155.0,71152.0,0.06213187]
[1730186939864,0.070323,71154.0,71152.0,0.06213187]
[1730186940261,0.06213187,71160.0,71150.0,0.3608]
[1730186940468,0.070324,71152.0,71150.0,0.42293187]
[1730186940964,0.070324,71152.0,71151.0,0.070325]
[1730186941766,0.070324,71152.0,71151.0,0.431125]
[1730186942671,0.070324,71152.0,71151.0,0.432125]
[1730186943064,0.070324,71152.0,71151.0,0.433125]
[1730186944260,0.070324,71152.0,71151.0,0.3628]
[1730186944466,0.13245587,71152.0,71151.0,0.3628]
[1730186944865,0.13245587,71152.0,71151.0,0.002]
[1730186945174,0.070324,71152.0,71151.0,0.002]
[1730186950174,0.10477027,71152.0,71151.0,0.002]
[1730186950481,0.10669868,71152.0,71151.0,0.002]
[1730186951775,0.08623743,71152.0,71151.0,0.002]
[1730186955575,0.07225241,71152.0,71151.0,0.06413187]
[1730186955783,0.07225241,71152.0,71151.0,0.13445687]
[1730186956481,0.00192841,71152.0,71151.0,0.13445687]
[1730186961169,0.07225241,71152.0,71151.0,0.06413187]
[1730186962083,0.07225241,71152.0,71151.0,0.002]
[1730186962385,0.10669734,71152.0,71151.0,0.06413187]
[1730186962993,0.1066975,71152.0,71151.0,0.06413187]
[1730186968685,0.14987313,71152.0,71151.0,0.002]
[1730186970289,0.14987313,71152.0,71151.0,0.06413187]
[1730186972432,0.1066975,71152.0,71151.0,0.13445687]
[1730186972887,0.1066975,71152.0,71151.0,0.06413187]
[1730186973579,0.14987344,71152.0,71151.0,0.06413187]
[1730186973773,0.14987452,71152.0,71151.0,0.06413187]
[1730186978692,0.14987451,71152.0,71151.0,0.06413187]
[1730186980802,0.72164,71151.0,71138.0,0.00092]
[1730186980995,0.72164,71151.0,71122.0,0.3608]
[1730186980996,0.49326887,71139.0,71123.0,0.0314]
[1730186981199,0.070352,71125.0,71123.0,0.0314]
[1730186981387,0.06213187,71128.0,71123.0,0.0314]
[1730186981388,0.00192841,71124.0,71123.0,0.0314]
[1730186982094,0.07228041,71124.0,71123.0,0.0314]
[1730186982292,0.07228041,71124.0,71123.0,0.09353187]
[1730186982890,0.07228041,71124.0,71123.0,0.16388487]
[1730186983502,0.10673898,71124.0,71123.0,0.16388487]
[1730186983698,0.07228041,71124.0,71123.0,0.16388487]
[1730186985536,0.07328041,71124.0,71123.0,0.16388487]
[1730186985895,0.07228041,71124.0,71123.0,0.16388487]
[1730186986196,0.07328041,71124.0,71123.0,0.16388487]
[1730186986801,0.070358,71119.0,71118.0,0.070357]
[1730186987005,0.13248987,71119.0,71118.0,0.070357]
[1730186987195,0.070358,71119.0,71118.0,0.070357]
[1730186987498,0.07228641,71119.0,71118.0,0.070357]
[1730186988596,0.07228641,71119.0,71118.0,0.073357]
[1730186988993,0.07228641,71119.0,71118.0,0.075357]
[1730186989196,0.07228641,71119.0,71118.0,0.005]
[1730186989412,0.07228641,71119.0,71118.0,0.075358]
[1730186989606,0.07228641,71119.0,71118.0,0.005]
[1730186990399,0.10675069,71119.0,71118.0,0.005]
[1730186990699,0.10675126,71119.0,71118.0,0.005]
[1730186991595,0.07228641,71119.0,71118.0,0.005]
[1730186991995,0.07228641,71119.0,71118.0,0.00326215]
[1730186991996,0.52859126,71119.0,71118.0,0.00326215]
[1730186992192,0.60259272,71119.0,71118.0,0.00326215]
[1730186993003,0.60259537,71119.0,71118.0,0.00326215]
[1730186993337,0.60359537,71119.0,71118.0,0.002]
[1730186993710,0.56039337,71119.0,71118.0,0.002]
[1730186994716,0.92119337,71119.0,71118.0,0.002]
[1730186995516,0.070373,71103.0,71102.0,0.070374]
[1730186996030,0.070375,71102.0,71098.0,0.0321]
[1730186996312,0.16502841,71099.0,71098.0,0.0321]
[1730186996503,0.16695682,71099.0,71098.0,0.0321]
[1730186996918,0.07230541,71099.0,71098.0,0.0321]
[1730186998312,0.07230541,71099.0,71098.0,0.0351]
[1730186998528,0.07230541,71099.0,71098.0,0.0391]
[1730186999224,0.16695682,71099.0,71098.0,0.007]
[1730186999719,0.07230541,71099.0,71098.0,0.007]
[1730187000435,0.00192841,71099.0,71098.0,0.077378]
[1730187001020,0.070372,71105.0,71104.0,0.070372]
[1730187001318,0.070372,71105.0,71104.0,0.16502341]
[1730187002321,0.072372,71105.0,71104.0,0.16502341]
[1730187003024,0.072372,71105.0,71104.0,0.070372]
[1730187005009,0.072372,71105.0,71104.0,0.16502341]
[1730187005213,0.002,71105.0,71104.0,0.52582341]
[1730187005814,0.002,71105.0,71104.0,0.16502341]
[1730187006312,0.002,71105.0,71104.0,0.52582341]
[1730187006519,0.072371,71105.0,71104.0,0.3608]
[1730187007017,0.070372,71104.0,71102.0,0.070373]
[1730187007406,0.070373,71103.0,71102.0,0.070373]
[1730187008220,0.070373,71103.0,71102.0,0.16502441]
[1730187008906,0.070364,71112.0,71104.0,0.070372]
[1730187009113,0.3608,71110.0,71108.0,0.09465141]
[1730187009407,0.070368,71108.0,71106.0,0.07037]
[1730187010008,0.3608,71110.0,71106.0,0.07037]
[1730187010218,0.070368,71108.0,71106.0,0.07037]
[1730187010419,0.070369,71107.0,71106.0,0.07037]
[1730187010905,0.3608,71110.0,71109.0,0.070367]
[1730187011109,0.3608,71110.0,71109.0,0.16501841]
[1730187011719,0.3608,71110.0,71104.0,0.001]
[1730187011720,0.78268,71110.0,71104.0,0.001]
[1730187012139,0.09465141,71105.0,71098.0,0.3608]
[1730187012216,0.070374,71102.0,71100.0,0.070376]
[1730187012515,0.09465141,71105.0,71095.0,0.07038]
[1730187012516,0.3608,71104.0,71095.0,0.07038]
[1730187012709,0.3608,71104.0,71099.0,0.070376]
[1730187013420,0.3608,71104.0,71100.0,0.09465141]
[1730187013717,0.3608,71104.0,71103.0,0.070373]
[1730187013920,0.3608,71104.0,71103.0,0.16502441]
[1730187014513,0.070367,71109.0,71106.0,0.070369]
[1730187015324,0.070367,71109.0,71107.0,0.070368]
[1730187016326,0.03446764,71108.0,71107.0,0.070368]
[1730187016616,0.03446778,71108.0,71107.0,0.070368]
[1730187017218,0.073367,71109.0,71107.0,0.070368]
[1730187017912,0.03446805,71108.0,71107.0,0.070368]
[1730187018524,0.07767125,71108.0,71107.0,0.070368]
[1730187018912,0.10483605,71108.0,71107.0,0.070368]
[1730187019111,0.10783605,71108.0,71107.0,0.070368]
[1730187019513,0.073368,71108.0,71107.0,0.070368]
[1730187019817,0.003,71108.0,71101.0,0.0312]
[1730187020013,0.070372,71104.0,71102.0,0.070373]
[1730187020215,0.09465141,71104.0,71097.0,0.070378]
[1730187020416,0.070376,71100.0,71097.0,0.070378]
[1730187020721,0.07767393,71099.0,71098.0,0.070378]
[1730187021116,0.03446896,71099.0,71098.0,0.070378]
[1730187021718,0.10484596,71099.0,71098.0,0.070378]
[1730187022123,0.03446896,71099.0,71098.0,0.070378]
[1730187022321,0.070376,71100.0,71098.0,0.074377]
[1730187022521,0.03446896,71099.0,71098.0,0.074377]
[1730187022927,0.03446896,71099.0,71098.0,0.077377]
[1730187024017,0.03446896,71099.0,71098.0,0.003]
[1730187024215,0.3608,71103.0,71100.0,0.070375]
[1730187024526,0.3608,71103.0,71098.0,0.006]
[1730187024527,0.3608,71103.0,71102.0,0.16502541]
[1730187027329,0.3952702,71103.0,71102.0,0.16502541]
[1730187029514,0.3608,71103.0,71102.0,0.16502541]
[1730187030828,0.070375,71101.0,71098.0,0.070377]
[1730187031522,0.0302,71102.0,71094.0,0.3608]
[1730187031523,0.09465141,71099.0,71094.0,0.3608]
[1730187031722,0.070381,71095.0,71094.0,0.3608]
[1730187031920,0.10485292,71095.0,71094.0,0.3608]
[1730187032426,0.19950433,71095.0,71094.0,0.3608]
[1730187032627,0.070385,71091.0,71090.0,0.00210986]
[1730187032835,0.10485776,71091.0,71090.0,0.07249586]
[1730187033349,0.070385,71091.0,71090.0,0.07249586]
[1730187033533,0.10485926,71091.0,71090.0,0.07249586]
[1730187034027,0.03447426,71091.0,71090.0,0.07249586]
[1730187034580,0.03447426,71091.0,71090.0,0.00210986]
[1730187034581,0.070385,71091.0,71090.0,0.00210986]
[1730187035230,0.3608,71093.0,71092.0,0.070384]
[1730187035632,0.43848781,71093.0,71092.0,0.135784]
[1730187036328,0.39527533,71093.0,71092.0,0.135784]
[1730187036521,0.43848717,71093.0,71092.0,0.135784]
[1730187036718,0.39527533,71093.0,71092.0,0.143784]
[1730187037327,0.3608,71093.0,71092.0,0.143784]
[1730187037626,0.3608,71103.0,71102.0,0.070374]
[1730187037832,0.43848047,71103.0,71102.0,0.070374]
[1730187038019,0.43847953,71103.0,71102.0,0.070374]
[1730187038226,0.39527206,71103.0,71102.0,0.070374]
[1730187038730,0.43847983,71103.0,71102.0,0.070374]
[1730187039230,0.39527206,71103.0,71102.0,0.070374]
[1730187039432,0.39527156,71103.0,71102.0,0.070374]
[1730187041647,0.3608,71103.0,71102.0,0.070374]
[1730187042529,0.01450697,71110.0,71107.0,0.070368]
[1730187042728,0.01450697,71110.0,71099.0,0.01382594]
[1730187042729,0.36152,71112.0,71111.0,0.070365]
[1730187042923,0.3608,71112.0,71111.0,0.16501641]
[1730187044829,0.3638,71112.0,71111.0,0.16601641]
[1730187045434,0.3638,71112.0,71111.0,0.16701641]
[1730187046531,0.39826463,71112.0,71111.0,0.16701641]
[1730187047242,0.003,71112.0,71111.0,0.16701641]
[1730187047833,0.003,71112.0,71111.0,0.16601641]
[1730187048037,0.003,71112.0,71111.0,0.16701641]
[1730187048740,0.36290994,71118.0,71117.0,0.070359]
[1730187048941,0.39737337,71118.0,71117.0,0.070359]
[1730187049134,0.36290994,71118.0,71117.0,0.070359]
[1730187050240,0.39737189,71118.0,71117.0,0.101559]
[1730187050437,0.36290994,71118.0,71117.0,0.101559]
[1730187050737,0.00210994,71118.0,71117.0,0.101559]
[1730187051937,0.00510994,71118.0,71117.0,0.101559]
[1730187052537,0.00210994,71118.0,71117.0,0.104559]
[1730187052943,0.3608,71125.0,71124.0,0.070352]
[1730187053543,0.0309,71134.0,71124.0,0.070352]
[1730187053544,0.0309,71134.0,71124.0,0.3608]
[1730187053769,0.39284,71138.0,71137.0,0.070339]
[1730187053770,0.00084,71138.0,71137.0,0.070339]
[1730187054050,0.09465141,71142.0,71139.0,0.070337]
[1730187054846,0.09465141,71145.0,71139.0,0.070337]
[1730187055344,0.09465141,71145.0,71139.0,0.071337]
[1730187056041,0.42406,71146.0,71139.0,0.071337]
[1730187056243,0.00510925,71140.0,71139.0,0.072337]
[1730187056842,0.00510925,71140.0,71139.0,0.854857]
[1730187056843,0.003,71140.0,71139.0,0.854857]
[1730187057037,0.3608,71161.0,71160.0,0.070316]
[1730187058739,0.3608,71161.0,71160.0,0.071316]
[1730187059649,0.3608,71161.0,71160.0,0.0446897]
[1730187060044,0.3608,71161.0,71160.0,0.0456897]
[1730187060245,0.3608,71161.0,71160.0,0.002]
[1730187061953,0.3608,71161.0,71160.0,0.072316]
[1730187066351,0.3608,71161.0,71160.0,0.071316]
[1730187066653,0.3608,71161.0,71160.0,0.072316]
[1730187068253,0.3608,71161.0,71160.0,0.002]
[1730187068254,0.852715,71161.0,71160.0,0.002]
[1730187069558,1.24796229,71161.0,71149.0,0.070327]